bitfinex/quotes_ETHUSD_20260216
["timestamp","ask_amount","ask_price","bid_price","bid_amount"]
[1771250842036,2.63542625,1973.8,1972.5,0.48792426]
[1771250842444,0.45472653,1973.7,1972.5,0.48792426]
[1771250842611,0.52,1973.6,1972.5,0.001]
[1771250842813,1.72151142,1973.5,1972.5,0.001]
[1771250843038,0.45472653,1973.4,1972.5,0.001]
[1771250844315,1.78677157,1973.6,1972.5,0.001]
[1771250845946,0.52,1973.6,1972.5,0.001]
[1771250846145,1.78672128,1973.6,1972.5,0.48792426]
[1771250847952,0.52,1973.6,1972.5,0.48792426]
[1771250848754,1.78674346,1973.6,1972.5,0.48792426]
[1771250848921,0.52,1973.6,1972.5,0.48792426]
[1771250850058,0.0011,1973.5,1972.7,0.48692426]
[1771250850365,0.0011,1973.5,1972.6,0.001]
[1771250850522,0.0011,1973.5,1972.6,0.48792426]
[1771250851632,0.0011,1973.5,1972.8,0.48692426]
[1771250851836,0.0011,1973.5,1972.9,1.91992426]
[1771250853229,0.0011,1973.5,1972.9,1.433]
[1771250853426,0.0011,1973.5,1972.6,0.001]
[1771250853627,0.0011,1973.5,1972.7,0.52]
[1771250853941,0.0011,1973.5,1972.7,1.00692426]
[1771250855055,0.0011,1973.5,1972.7,0.52]
[1771250855367,0.0011,1973.5,1972.8,0.48692426]
[1771250859770,0.0011,1973.8,1972.9,0.48692426]
[1771250860539,0.0011,1973.8,1972.8,0.1024]
[1771250860746,0.0011,1973.8,1972.7,1.00692426]
[1771250861451,0.45582653,1973.8,1972.7,1.00692426]
[1771250862339,0.45472653,1973.7,1972.7,0.52]
[1771250862576,0.45472653,1973.7,1972.6,0.521]
[1771250862752,0.0011,1973.8,1972.7,0.48692426]
[1771250862951,0.45472653,1973.7,1972.6,0.521]
[1771250863770,0.49352823,1973.5,1972.7,0.001]
[1771250864072,0.49352823,1973.3,1972.7,0.001]
[1771250865379,0.0011,1973.8,1973.0,0.48181345]
[1771250865584,0.0011,1973.8,1973.1,1.91481345]
[1771250865889,0.0011,1973.9,1973.3,0.58421345]
[1771250866061,0.0011,1974.1,1973.3,0.58421345]
[1771250866588,0.49462823,1974.0,1972.8,0.52]
[1771250866947,3.42616888,1973.9,1972.8,0.52]
[1771250867158,0.49352823,1973.8,1972.8,0.52]
[1771250867352,0.49352823,1973.7,1972.8,0.52]
[1771250868452,1.76019335,1973.7,1972.8,0.52]
[1771250869290,0.49352823,1973.7,1972.8,0.52]
[1771250870779,0.9141,1974.0,1972.8,0.52]
[1771250870780,1.76095834,1974.0,1972.8,0.52]
[1771250871485,0.49445258,1974.0,1972.8,0.52]
[1771250871660,0.49335258,1973.9,1972.8,0.52]
[1771250872565,0.0011,1974.0,1972.8,10.61680648]
[1771250872761,0.0011,1974.0,1972.9,0.46704546]
[1771250873083,0.0011,1974.0,1972.8,10.14976102]
[1771250873084,0.49445258,1974.0,1972.8,10.14976102]
[1771250873305,0.49445258,1974.0,1972.8,10.61680648]
[1771250874186,0.49445258,1974.0,1972.8,0.52]
[1771250875391,0.49335258,1973.8,1972.7,0.001]
[1771250875690,0.49335258,1973.8,1972.7,0.521]
[1771250877492,1.26665653,1973.7,1972.7,0.521]
[1771250877787,1.26665653,1973.7,1972.7,0.001]
[1771250877788,0.49335258,1973.5,1972.7,0.001]
[1771250877994,0.49335258,1973.5,1972.9,0.001]
[1771250878154,0.52,1973.6,1972.9,0.001]
[1771250879796,0.913,1973.7,1972.9,0.001]
[1771250880361,0.49335258,1973.6,1972.9,0.001]
[1771250880697,0.49335258,1973.4,1972.9,0.001]
[1771250881268,0.52,1973.5,1972.9,0.001]
[1771250881464,1.78765592,1973.9,1972.9,0.001]
[1771250881668,0.49335258,1973.6,1972.9,0.001]
[1771250883099,0.49335258,1973.6,1972.7,0.001]
[1771250883463,0.913,1973.5,1972.7,0.001]
[1771250883697,0.49335258,1973.1,1972.7,0.001]
[1771250884764,2.2802501,1973.4,1972.7,0.001]
[1771250884968,0.52,1973.3,1972.7,0.001]
[1771250885991,1.26697749,1973.2,1972.7,0.001]
[1771250886176,1.78696425,1973.3,1972.7,0.001]
[1771250886578,10.62335258,1973.7,1972.7,0.001]
[1771250886899,1.01335258,1973.6,1972.7,0.001]
[1771250888167,2.28011756,1973.6,1972.7,0.001]
[1771250889408,1.01335258,1973.6,1972.7,0.001]
[1771250890216,2.28008054,1973.6,1972.7,0.001]
[1771250890505,0.49335258,1973.5,1972.8,0.001]
[1771250890873,0.49445258,1973.5,1972.8,0.001]
[1771250891699,0.49445258,1973.5,1972.6,0.001]
[1771250892409,0.0011,1973.5,1972.6,0.001]
[1771250892583,0.52,1973.4,1972.6,0.001]
[1771250893327,0.49335258,1973.3,1972.6,0.001]
[1771250894598,5.56101644,1973.3,1972.6,0.001]
[1771250895019,0.46963188,1973.2,1972.6,0.001]
[1771250896718,0.46963188,1973.0,1972.6,0.001]
[1771250896914,0.98963188,1972.9,1972.6,0.001]
[1771250897490,0.52,1972.9,1972.6,0.001]
[1771250902832,1.26698721,1973.2,1972.6,0.001]
[1771250903038,0.52,1973.1,1972.6,0.001]
[1771250903396,0.52,1973.1,1972.7,0.001]
[1771250903897,0.0011,1973.2,1972.7,0.48768026]
[1771250904124,0.0011,1973.3,1972.7,0.48768026]
[1771250904424,0.0011,1973.5,1972.7,0.48768026]
[1771250907848,0.0011,1973.8,1972.8,0.48668026]
[1771250908430,0.0011,1973.8,1972.9,0.48668026]
[1771250909848,0.0011,1974.0,1973.3,0.48668026]
[1771250910151,0.46963188,1974.6,1973.5,0.48668026]
[1771250910338,1.2660439,1974.7,1973.5,0.48668026]
[1771250910540,5.58395378,1974.8,1973.5,0.48668026]
[1771250910541,0.52,1974.8,1973.5,0.48668026]
[1771250910735,0.46963188,1974.7,1973.5,0.48668026]
[1771250911677,1.73550031,1975.0,1973.5,0.48668026]
[1771250911963,0.52,1974.8,1973.5,0.48668026]
[1771250913135,0.52,1974.9,1973.7,0.48668026]
[1771250913358,0.46963188,1974.8,1973.4,1.00668026]
[1771250913547,1.26601509,1974.7,1973.5,0.48668026]
[1771250913741,0.46963188,1974.8,1973.5,0.48668026]
[1771250914331,1.73558485,1974.8,1973.5,0.48668026]
[1771250914657,0.46963188,1974.7,1973.5,0.48668026]
[1771250915539,0.47073188,1974.7,1973.5,0.48668026]
[1771250915736,0.46963188,1974.5,1973.4,0.52]
[1771250916125,0.46963188,1974.3,1973.4,0.52]
[1771250916559,0.46963188,1974.3,1973.3,0.913]
[1771250917532,0.46963188,1974.3,1972.9,0.52]
[1771250917833,0.46963188,1974.1,1972.9,0.52]
[1771250919364,0.46963188,1974.1,1972.9,1.00668026]
[1771250919679,0.46963188,1974.1,1973.0,0.48668026]
[1771250920265,1.73605865,1974.1,1972.9,0.52]
[1771250920875,0.52,1974.0,1972.9,0.52]
[1771250921275,1.38263188,1974.4,1973.0,0.48668026]
[1771250921567,0.913,1974.4,1973.2,0.48668026]
[1771250922866,0.913,1974.4,1973.3,0.48668026]
[1771250925467,0.913,1974.4,1973.4,0.52]
[1771250925665,0.913,1974.4,1973.5,0.47835313]
[1771250926442,0.52,1974.6,1973.5,0.47835313]
[1771250927575,0.0011,1974.7,1973.6,0.46578631]
[1771250927878,0.0011,1974.7,1973.4,0.1034]
[1771250927879,0.48135446,1974.6,1973.4,0.1034]
[1771250928054,0.0011,1974.4,1973.5,0.52]
[1771250928444,0.48245446,1974.4,1973.4,0.521]
[1771250928947,0.0011,1974.4,1973.4,0.521]
[1771250929276,0.48135446,1974.3,1973.4,0.521]
[1771250930560,0.0011,1974.4,1973.4,0.521]
[1771250930753,1.26730837,1974.4,1973.4,0.521]
[1771250931067,1.74767877,1974.3,1973.4,0.521]
[1771250931246,0.48135446,1974.2,1973.4,0.001]
[1771250933270,1.74775433,1974.1,1973.4,0.001]
[1771250933471,0.52,1974.0,1973.4,0.001]
[1771250934060,1.26632082,1974.3,1973.4,0.001]
[1771250934383,0.52,1974.1,1973.4,0.001]
[1771250934582,1.00135446,1974.1,1973.4,0.001]
[1771250934786,0.48135446,1974.1,1973.4,0.001]
[1771250934996,0.52,1974.2,1973.4,0.001]
[1771250935355,2.26774349,1974.2,1973.4,0.001]
[1771250935766,0.0011,1974.4,1973.4,0.001]
[1771250935988,0.0011,1974.4,1973.4,0.46678631]
[1771250936156,0.0011,1974.4,1973.5,0.52]
[1771250936359,0.0011,1974.4,1973.6,0.46578631]
[1771250937590,0.0011,1974.4,1973.5,0.52]
[1771250937764,0.0011,1974.4,1973.5,0.98578631]
[1771250938758,0.0011,1974.4,1973.5,0.52]
[1771250938957,0.48245446,1974.4,1973.5,0.52]
[1771250940195,0.0011,1974.4,1973.5,0.52]
[1771250940564,0.0011,1974.4,1973.5,0.98578631]
[1771250941086,0.0011,1974.4,1973.5,0.52]
[1771250941284,1.74866213,1974.4,1973.5,0.521]
[1771250941455,1.74867401,1974.4,1973.5,0.521]
[1771250941658,0.48245446,1974.3,1973.5,0.521]
[1771250942200,0.48135446,1974.2,1973.5,0.521]
[1771250942404,0.48135446,1974.2,1973.5,0.001]
[1771250944271,0.48135446,1974.0,1972.6,0.521]
[1771250944592,0.48135446,1973.8,1972.6,0.521]
[1771250945476,0.48135446,1973.8,1972.6,0.001]
[1771250946097,0.52,1973.7,1972.6,0.001]
[1771250946486,1.78666165,1973.7,1972.6,0.001]
[1771250946905,0.48135446,1974.2,1972.7,0.46678631]
[1771250947201,0.52,1974.1,1972.9,0.46578631]
[1771250948009,0.52,1974.1,1973.0,0.51358801]
[1771250948602,1.78640685,1974.1,1973.0,0.51358801]
[1771250948775,0.52,1974.1,1973.0,0.51358801]
[1771250950614,1.78641366,1974.1,1973.0,0.51358801]
[1771250950791,0.52,1974.1,1973.0,0.51358801]
[1771250952127,1.78639995,1974.1,1973.0,0.51358801]
[1771250953341,0.52,1974.1,1973.0,0.51358801]
[1771250954492,0.5211,1974.3,1973.0,0.51358801]
[1771250954696,0.5211,1974.3,1973.2,0.49201674]
[1771250954926,0.5211,1974.3,1973.3,1.05981117]
[1771250955296,0.0011,1974.0,1973.4,0.49201674]
[1771250955492,0.0011,1974.0,1973.4,0.53980632]
[1771250956498,0.0011,1974.1,1973.5,0.49201674]
[1771250957358,0.0011,1974.3,1973.6,0.49201674]
[1771250957525,0.0011,1974.3,1973.7,1.01201674]
[1771250957727,0.0011,1974.4,1973.8,0.49201674]
[1771250959220,0.0011,1974.5,1973.9,0.49201674]
[1771250959419,0.4976903,1975.0,1973.7,0.52]
[1771250959855,0.4976903,1975.0,1973.7,1.01201674]
[1771250960038,0.4987903,1974.7,1973.7,0.52]
[1771250960551,0.4987903,1974.7,1972.6,0.49301674]
[1771250960552,0.4976903,1974.2,1972.6,0.49301674]
[1771250960733,0.4976903,1974.0,1972.6,0.001]
[1771250961450,0.4976903,1973.8,1972.6,0.001]
[1771250961652,0.4976903,1973.6,1972.6,0.001]
[1771250961953,0.4976903,1973.4,1972.6,0.001]
[1771250964023,0.4976903,1973.2,1972.6,0.001]
[1771250966262,1.76473201,1973.1,1972.6,0.001]
[1771250966486,0.52,1973.0,1972.6,0.001]
[1771250966925,0.52,1973.0,1972.9,0.001]
[1771250967554,1.0176903,1973.0,1972.4,0.001]
[1771250968522,1.26717015,1972.9,1972.4,0.001]
[1771250968928,0.1024,1973.9,1972.5,0.49201674]
[1771250969129,1.76402603,1974.2,1972.7,0.49201674]
[1771250969375,0.4976903,1974.1,1972.6,0.52]
[1771250969530,0.4976903,1973.9,1972.6,0.52]
[1771250969736,1.9306903,1973.8,1972.6,0.52]
[1771250969961,1.9306903,1973.8,1972.6,1.01201674]
[1771250970160,2.67702603,1974.2,1972.7,0.49201674]
[1771250970367,1.9306903,1974.2,1972.8,0.49201674]
[1771250970861,3.19704959,1974.2,1972.8,0.49201674]
[1771250971480,0.4976903,1974.1,1972.6,1.01201674]
[1771250971631,0.4976903,1973.9,1972.6,0.52]
[1771250973762,0.4976903,1973.7,1972.5,0.913]
[1771250973965,0.4976903,1973.5,1972.5,0.913]
[1771250974144,1.4106903,1973.5,1972.5,0.913]
[1771250975353,0.4976903,1973.4,1972.5,0.913]
[1771250975552,0.4976903,1973.4,1972.4,0.001]
[1771250975753,1.76460359,1973.3,1972.4,0.001]
[1771250976670,0.4976903,1972.7,1972.0,0.001]
[1771250976964,1.433,1972.6,1972.0,0.001]
[1771250977354,0.52,1972.5,1972.0,0.001]
[1771250978365,1.26721074,1972.9,1972.0,0.001]
[1771250978569,0.52,1972.8,1972.0,0.001]
[1771250979064,0.52,1972.8,1972.5,0.001]
[1771250979797,0.52,1972.8,1972.2,0.001]
[1771250980747,1.78723564,1972.8,1972.2,0.001]
[1771250980980,0.52,1972.8,1972.2,0.001]
[1771250981780,1.78724105,1972.8,1972.2,0.001]
[1771250981954,0.52,1972.8,1972.2,0.001]
[1771250982360,0.4976903,1973.3,1972.2,0.001]
[1771250982361,1.26680511,1973.5,1972.2,0.49301674]
[1771250982664,0.4976903,1973.4,1972.2,0.49301674]
[1771250983069,0.4976903,1973.4,1972.2,0.001]
[1771250984385,0.46694676,1973.2,1972.2,0.001]
[1771250984549,1.433,1973.1,1972.2,0.001]
[1771250987083,0.52,1973.0,1972.2,0.001]
[1771250988353,0.46694676,1973.2,1972.2,0.001]
[1771250988686,0.52,1972.9,1972.2,0.001]
[1771250989056,1.78718092,1972.9,1972.2,0.001]
[1771250989255,0.52,1972.9,1972.2,0.001]
[1771250989485,1.78718795,1972.9,1972.2,0.001]
[1771250989664,0.52,1972.9,1972.2,0.001]
[1771250991199,1.78717389,1972.9,1972.2,0.001]
[1771250991490,0.52,1972.9,1972.2,0.001]
[1771250992883,1.78717432,1972.9,1972.2,0.001]
[1771250993396,0.52,1972.9,1972.2,0.001]
[1771250995064,1.78718178,1972.9,1972.2,0.001]
[1771250995266,0.52,1972.9,1972.2,0.001]
[1771250995490,1.78717387,1972.9,1972.2,0.001]
[1771250995791,0.52,1972.9,1972.2,0.001]
[1771250997895,1.78719308,1972.9,1972.2,0.001]
[1771250999475,0.52,1972.9,1972.2,0.001]
[1771250999794,1.7871738,1972.9,1972.2,0.001]
[1771251000670,0.46028341,1972.8,1972.2,0.001]
[1771251000867,0.46028341,1972.8,1972.0,0.001]
[1771251001773,1.72771053,1972.5,1971.8,0.001]
[1771251001999,1.89328341,1972.4,1971.8,0.001]
[1771251002384,1.26742712,1972.5,1971.8,0.001]
[1771251002588,1.433,1972.6,1971.8,0.47720729]
[1771251003601,1.433,1972.6,1971.9,0.001]
[1771251003602,0.46028341,1972.5,1971.9,0.001]
[1771251003788,0.46028341,1972.3,1971.7,0.001]
[1771251003971,0.52,1972.2,1971.7,0.001]
[1771251004470,0.98028341,1972.2,1971.7,0.001]
[1771251004900,0.46028341,1972.1,1971.7,0.001]
[1771251005116,0.46028341,1972.1,1971.3,0.001]
[1771251006424,0.46028341,1971.9,1971.3,0.001]
[1771251006569,0.46028341,1971.7,1971.3,0.001]
[1771251006899,0.46028341,1971.7,1970.5,0.47620729]
[1771251008077,0.46028341,1971.3,1969.9,0.47620729]
[1771251008271,0.46028341,1971.3,1969.6,0.47620729]
[1771251008272,0.46028341,1971.1,1969.6,0.47620729]
[1771251008471,1.26826298,1971.2,1969.6,0.47620729]
[1771251008472,0.46028341,1970.9,1969.6,0.47620729]
[1771251008909,0.46028341,1970.9,1969.3,0.47620729]
[1771251009109,0.46028341,1970.5,1969.0,0.47620729]
[1771251009404,0.521,1970.4,1969.0,0.47620729]
[1771251009571,0.46028341,1970.3,1969.0,0.47620729]
[1771251009771,1.435,1970.2,1969.0,0.47620729]
[1771251010186,0.46028341,1970.1,1968.6,0.47620729]
[1771251010517,0.46028341,1969.9,1968.6,0.47620729]
[1771251010807,0.914,1969.8,1968.6,0.47620729]
[1771251011316,0.521,1969.7,1968.6,0.47620729]
[1771251012305,2.25053313,1969.7,1968.5,0.914]
[1771251012491,0.521,1969.7,1968.6,0.47620729]
[1771251012805,0.46028341,1969.6,1968.3,0.47620729]
[1771251013008,0.46028341,1969.6,1968.0,0.47620729]
[1771251014078,10.10030155,1969.6,1968.0,0.47620729]
[1771251014279,0.49225647,1969.3,1968.0,0.47620729]
[1771251014504,1.01325647,1969.2,1968.0,0.47620729]
[1771251014708,1.40625647,1969.1,1967.9,0.521]
[1771251014908,0.914,1969.1,1967.9,1.0205751]
[1771251015379,0.914,1969.1,1968.0,0.4995751]
[1771251016078,0.914,1969.1,1968.1,0.001]
[1771251016393,0.914,1969.1,1968.1,0.5005751]
[1771251016597,0.49225647,1969.7,1968.1,0.5005751]
[1771251016805,1.92725647,1969.6,1968.1,0.5005751]
[1771251017014,1.435,1969.6,1968.1,0.5005751]
[1771251018314,0.521,1969.8,1968.4,0.4995751]
[1771251018897,0.521,1969.8,1968.5,0.4995751]
[1771251019221,1.79017422,1969.8,1968.5,0.4995751]
[1771251019417,2.28243069,1969.8,1968.5,0.4995751]
[1771251019928,1.76143069,1969.8,1968.5,0.4995751]
[1771251020128,0.49225647,1969.6,1968.4,0.915]
[1771251021804,1.76159137,1969.6,1968.4,0.915]
[1771251022217,0.49225647,1969.5,1968.4,0.915]
[1771251022430,0.49225647,1969.5,1968.1,0.001]
[1771251023739,1.76167862,1969.4,1968.1,0.001]
[1771251023930,0.49225647,1969.3,1968.1,0.001]
[1771251024237,1.01325647,1969.2,1968.1,0.001]
[1771251024606,0.49225647,1969.1,1968.1,0.001]
[1771251024810,1.40725647,1969.0,1968.1,0.001]
[1771251025546,0.49225647,1968.9,1968.1,0.001]
[1771251025715,1.26980902,1968.8,1968.1,0.001]
[1771251025916,0.521,1968.7,1968.1,0.001]
[1771251026143,0.49225647,1968.6,1968.0,0.001]
[1771251026313,0.49225647,1968.6,1967.2,1.76368769]
[1771251027239,0.49225647,1968.5,1967.2,1.26411259]
[1771251027735,1.27006705,1968.4,1967.2,1.26411259]
[1771251027939,0.915,1968.3,1967.2,1.26411259]
[1771251028139,0.521,1968.2,1967.2,1.26411259]
[1771251029150,0.49225647,1968.1,1966.5,0.4995751]
[1771251029654,0.49225647,1968.1,1968.0,0.001]
[1771251029866,0.49225647,1967.7,1966.2,1.4145751]
[1771251030008,1.92825647,1967.6,1966.2,1.4145751]
[1771251030350,0.49225647,1967.0,1965.6,0.26549279]
[1771251030520,1.436,1966.9,1965.7,0.4995751]
[1771251030721,0.521,1966.8,1965.7,0.4995751]
[1771251030921,0.521,1966.8,1965.9,0.4995751]
[1771251031813,1.79210538,1966.8,1965.7,0.521]
[1771251032023,0.49225647,1966.7,1965.6,0.915]
[1771251032245,1.79210538,1966.8,1965.6,0.915]
[1771251032246,0.521,1966.8,1965.6,0.915]
[1771251032454,1.79211134,1966.8,1965.6,0.915]
[1771251032812,2.28436781,1966.8,1965.6,0.915]
[1771251033010,0.521,1966.9,1965.7,0.4995751]
[1771251033341,0.521,1966.9,1965.6,0.915]
[1771251033528,0.49225647,1966.8,1965.6,0.915]
[1771251033847,1.27090641,1967.1,1965.7,0.4995751]
[1771251034140,0.49225647,1967.2,1965.7,0.4995751]
[1771251034141,1.436,1967.0,1965.7,0.4995751]
[1771251034461,0.916,1967.4,1965.9,0.4995751]
[1771251035314,0.916,1967.4,1965.6,0.4995751]
[1771251035315,0.49225647,1967.2,1965.6,0.4995751]
[1771251035761,0.49225647,1967.6,1965.6,0.4995751]
[1771251036071,0.49225647,1967.6,1965.9,0.4995751]
[1771251036072,0.521,1967.3,1965.9,0.4995751]
[1771251036820,0.521,1967.3,1966.2,0.4995751]
[1771251037041,0.521,1967.3,1966.4,0.4995751]
[1771251037237,1.76263151,1968.0,1966.4,0.4995751]
[1771251037519,14.72054423,1968.4,1966.3,0.521]
[1771251037520,1.27013158,1968.3,1966.6,0.4995751]
[1771251037720,0.521,1967.9,1966.6,0.4995751]
[1771251040257,0.521,1968.2,1966.6,0.4995751]
[1771251041527,0.521,1968.2,1966.7,0.4995751]
[1771251041725,5.18191886,1968.7,1966.6,9.64001814]
[1771251041726,1.76210525,1968.8,1967.1,0.4995751]
[1771251041948,1.79091098,1968.7,1967.2,0.4995751]
[1771251042266,0.521,1968.7,1967.2,0.4995751]
[1771251042732,0.001,1967.9,1967.2,0.4995751]
[1771251044235,0.001,1967.9,1966.9,0.4751537]
[1771251045739,0.001,1967.9,1966.8,0.521]
[1771251046557,0.001,1967.9,1966.9,0.4751537]
[1771251048646,0.001,1967.9,1966.8,0.521]
[1771251048874,0.001,1967.9,1966.8,0.98319079]
[1771251049054,0.001,1967.9,1966.9,0.46219079]
[1771251051670,0.001,1967.9,1967.2,0.46219079]
[1771251053246,0.001,1967.9,1967.3,0.521]
[1771251053477,2.64894745,1968.9,1967.4,0.46219079]
[1771251053687,0.46315578,1968.8,1967.4,0.46219079]
[1771251053844,0.46315578,1968.6,1966.8,0.46219079]
[1771251054044,0.46315578,1968.6,1967.0,0.521]
[1771251054542,0.001,1967.9,1967.0,0.521]
[1771251058653,0.001,1967.9,1967.0,0.98319079]
[1771251058776,0.001,1967.9,1967.1,0.46219079]
[1771251059403,0.001,1967.9,1967.2,0.46219079]
[1771251059607,5.07964842,1968.7,1967.2,0.46219079]
[1771251059608,1.26991289,1968.7,1967.2,0.46219079]
[1771251060320,3.16999835,1968.8,1967.2,0.46219079]
[1771251060477,1.90015578,1968.8,1967.2,0.46219079]
[1771251060805,3.16996741,1968.8,1967.2,0.46219079]
[1771251061109,1.437,1968.8,1967.2,0.46219079]
[1771251061414,0.916,1968.8,1967.6,0.46219079]
[1771251061584,0.916,1968.8,1967.8,0.46219079]
[1771251061787,0.916,1968.8,1968.0,0.46219079]
[1771251062096,2.64896965,1968.8,1967.3,0.56459079]
[1771251062283,0.46315578,1968.6,1967.3,0.46219079]
[1771251062483,0.46315578,1968.6,1967.2,0.521]
[1771251063016,0.46315578,1968.6,1967.3,0.521]
[1771251063216,0.46315578,1968.6,1966.8,0.46219079]
[1771251063519,0.46315578,1968.2,1966.9,0.98319079]
[1771251064389,0.46315578,1968.2,1966.9,0.46219079]
[1771251064596,0.46315578,1968.2,1967.0,0.521]
[1771251065305,0.46315578,1968.5,1967.0,0.98319079]
[1771251065513,1.27006705,1968.4,1967.0,0.98319079]
[1771251065880,1.73320564,1968.5,1967.0,0.98319079]
[1771251066085,1.73316514,1968.5,1967.2,0.46219079]
[1771251066601,1.73416514,1968.5,1967.2,0.46219079]
[1771251067417,0.46415578,1968.5,1967.2,0.46219079]
[1771251067711,0.001,1968.5,1967.5,9.40111224]
[1771251067880,0.001,1968.5,1967.6,0.98319079]
[1771251068510,0.001,1968.5,1967.7,0.46219079]
[1771251068918,0.46315578,1970.1,1968.7,8.93892145]
[1771251069086,0.46315578,1970.1,1968.8,0.521]
[1771251069087,0.46315578,1970.0,1968.8,0.521]
[1771251069484,0.46315578,1969.8,1967.9,0.46219079]
[1771251069684,0.46315578,1969.6,1968.0,0.521]
[1771251069896,0.46315578,1969.6,1968.0,0.98319079]
[1771251070317,0.521,1969.5,1968.1,0.46219079]
[1771251070703,0.98415578,1969.5,1968.1,0.46219079]
[1771251070895,0.46315578,1969.4,1968.0,0.521]
[1771251071535,0.46315578,1969.4,1968.0,9.92211224]
[1771251071697,0.46315578,1969.4,1968.1,0.46219079]
[1771251071897,1.73259512,1969.4,1968.1,0.46219079]
[1771251072086,0.46315578,1969.4,1968.1,0.46219079]
[1771251072789,1.7903761,1969.5,1968.1,0.46219079]
[1771251072790,0.521,1969.5,1968.1,0.46219079]
[1771251073424,1.79036746,1969.5,1968.1,0.46219079]
[1771251073588,0.46315578,1969.4,1968.1,0.46219079]
[1771251074022,1.26936231,1969.5,1968.1,0.46219079]
[1771251074350,0.916,1969.6,1968.1,0.46219079]
[1771251074528,2.18529767,1969.6,1968.1,0.46219079]
[1771251074733,0.916,1969.6,1968.4,0.47710005]
[1771251074934,0.916,1969.6,1968.6,0.47710005]
[1771251077635,0.521,1970.0,1968.8,0.47710005]
[1771251078057,5.17725768,1970.5,1969.0,0.47710005]
[1771251078058,1.73397683,1970.4,1969.0,0.47710005]
[1771251078362,0.46514252,1970.4,1969.0,0.47710005]
[1771251078532,1.73393346,1970.4,1969.0,0.47710005]
[1771251078930,0.0011,1969.5,1969.0,0.47710005]
[1771251079131,0.46514252,1970.4,1969.0,0.47710005]
[1771251079534,0.0011,1969.6,1969.0,0.47710005]
[1771251079933,0.521,1970.5,1969.0,0.47710005]
[1771251080757,0.46514252,1970.4,1969.0,0.47710005]
[1771251081133,0.46514252,1970.4,1969.0,0.52705811]
[1771251081539,0.46514252,1970.2,1968.9,0.521]
[1771251081944,0.46514252,1970.2,1969.0,0.04996308]
[1771251082955,0.46514252,1970.2,1969.0,0.52706313]
[1771251083157,0.46514252,1970.2,1968.9,0.521]
[1771251083353,0.46514252,1970.2,1968.9,0.57097133]
[1771251083872,1.73411363,1970.1,1968.9,0.57097133]
[1771251084379,0.46514252,1970.0,1968.9,0.521]
[1771251084537,0.46514252,1970.0,1968.5,0.915]
[1771251084737,0.46514252,1969.8,1968.5,0.915]
[1771251084981,0.46514252,1969.6,1968.5,0.915]
[1771251085966,1.73450022,1969.5,1968.5,0.915]
[1771251086167,0.46514252,1969.4,1968.5,0.915]
[1771251087085,0.46514252,1969.4,1967.9,0.521]
[1771251087886,0.46514252,1969.4,1968.0,0.47710005]
[1771251088471,1.73462913,1969.3,1968.0,0.47710005]
[1771251088772,0.46514252,1969.2,1968.0,0.47710005]
[1771251090858,1.73474111,1969.2,1968.0,0.47710005]
[1771251091362,0.98614252,1969.2,1968.0,0.47710005]
[1771251092077,0.521,1969.2,1968.1,0.47810005]
[1771251094455,5.99196,1969.7,1968.1,0.47810005]
[1771251094456,1.26929325,1969.6,1968.1,0.47810005]
[1771251094668,1.26948661,1969.3,1968.1,0.47810005]
[1771251094883,0.46514252,1969.2,1968.1,0.001]
[1771251095385,0.98614252,1969.1,1968.1,0.001]
[1771251095893,0.46514252,1969.0,1968.1,0.001]
[1771251096394,0.46514252,1968.9,1968.1,0.001]
[1771251097591,0.46514252,1968.9,1967.4,8.93892145]
[1771251097592,0.46514252,1968.6,1966.8,0.521]
[1771251097755,0.46514252,1968.4,1967.0,0.47820005]
[1771251097963,0.915,1968.3,1967.0,0.47820005]
[1771251098683,0.46514252,1968.2,1967.0,0.0011]
[1771251099591,0.46514252,1968.0,1967.0,0.0011]
[1771251099785,0.46514252,1967.8,1967.0,0.0011]
[1771251100293,0.521,1967.9,1967.0,0.0011]
[1771251100863,0.98614252,1967.9,1967.0,0.0011]
[1771251101262,0.46514252,1967.8,1967.0,0.0011]
[1771251101787,0.46514252,1968.1,1967.0,0.0011]
[1771251101978,0.915,1967.9,1967.0,0.0011]
[1771251102960,0.915,1967.9,1967.0,0.47820005]
[1771251104767,0.521,1968.0,1967.0,0.47820005]
[1771251104971,0.98614252,1968.4,1967.0,0.47820005]
[1771251105406,0.521,1968.4,1967.2,0.48006862]
[1771251105574,0.521,1968.4,1967.2,1.00106862]
[1771251106698,0.521,1968.4,1967.3,0.48006862]
[1771251107899,0.98554625,1968.4,1967.2,0.521]
[1771251108104,0.98554625,1968.4,1967.3,0.521]
[1771251109225,0.915,1968.6,1967.4,0.49528473]
[1771251110022,0.0011,1968.8,1967.4,0.49528473]
[1771251110219,0.0011,1968.8,1967.6,0.49528473]
[1771251111313,0.0011,1968.8,1967.7,0.49528473]
[1771251111718,0.0011,1968.8,1967.9,0.49528473]
[1771251111942,0.0011,1968.8,1968.0,0.49528473]
[1771251119321,0.0011,1968.8,1968.1,0.49528473]
[1771251119918,0.0011,1968.9,1968.1,0.49528473]
[1771251120244,0.0011,1969.1,1968.1,0.49528473]
[1771251120741,0.0011,1969.0,1968.1,0.49528473]
[1771251120945,0.0011,1969.0,1968.3,0.49528473]
[1771251121851,0.0011,1969.0,1968.2,0.521]
[1771251121852,0.46564625,1969.0,1968.2,0.521]
[1771251122041,0.46564625,1969.0,1968.1,0.521]
[1771251122438,0.0011,1969.0,1968.1,0.521]
[1771251122631,0.46564625,1969.0,1968.1,0.521]
[1771251123532,0.46454625,1968.9,1967.6,10.17756717]
[1771251123727,0.46454625,1968.9,1967.6,0.915]
[1771251123938,0.46454625,1968.9,1967.7,0.521]
[1771251124467,2.70679001,1969.0,1967.8,0.49528473]